Cogmind - Beta 17.1 @@@ ROGUE MODE // 2026.09.04 @ 07:46:34 Player: J1ang-5h1 Result: Destroyed by G-34 Mercenary with Small Laser Performance ------------- Evolutions (0) 0 Regions Visited (4) 800 Robots Destroyed (38) 190 Value Destroyed (716) 716 Prototype IDs (27) 540 Alien Tech Used (0) 0 Bonus (5800) 5800 TOTAL SCORE: 8046 Bonus ------- Prayed to X0-1V1 5000 Major X0-1V1 Interference 500 Aligned with FarCom 300 Cogmind --------- Core Integrity 0/250 Matter 248/300 Energy 94/280 System Corruption 0% Temperature Warm (115) Movement Walking (90) Location -9/Mines Parts ------- > --- POWER (1) -------- Heavy Ion Engine > --- PROPULSION (2) --- Potential Leg Potential Leg > --- UTILITY (2) ------ High-capacity Storage Unit > --- WEAPON (2) ------- Light Assault Rifle Light Assault Rifle > --- INVENTORY (20) --- Improved Treads Improved Treads Wheel Improved Heat Sink High-capacity Matter Pod (200) Structural Scanner Improved Terrain Scanner Seismic Detector Hacking Suite Grenade Launcher Mining Laser Peak State ------------ > --- POWER ------------ Heavy Ion Engine > --- PROPULSION ------- Potential Leg Potential Leg > --- UTILITY ---------- Large Storage Unit X0-1V1's Piety Tracker > --- WEAPON ----------- Assault Rifle Light Assault Rifle > --- INVENTORY -------- Heavy Ion Engine Improved Treads Improved Treads Wheel Improved Heat Sink Compact Matter Pod Structural Scanner Improved Terrain Scanner Seismic Detector Light Armor Plating Hacking Suite Light Assault Rifle Light Assault Rifle Grenade Launcher Mining Laser [Rating: 41] Favorites ----------- Power Heavy Ion Engine Engine Heavy Ion Engine Propulsion Improved Treads Treads Improved Treads Leg Aluminum Leg Wheel Wheel Utility Large Storage Unit Device Seismic Detector Storage Large Storage Unit Protection Light Armor Plating Weapon Light Assault Rifle Energy Gun Small Laser Ballistic Gun Light Assault Rifle Launcher Grenade Launcher Special Weapon Mining Laser Build | -11 -10 -10 -10 -9 ------- Run | Yrd Mat Min Exi Min Slots Evolved . | . . . . . Power . | . . . . . Propulsion . | . . . . . Utility . | . . . . . Weapon . | . . . . . Parts Attached 38 | 9 24 1 3 1 Power 5 | 1 3 . . 1 Engine 5 | 1 3 . . 1 Core . | . . . . . Reactor . | . . . . . Propulsion 11 | 3 6 . 2 . Treads 5 | . 5 . . . Leg 5 | 2 1 . 2 . Wheel 1 | 1 . . . . Hover . | . . . . . Flight . | . . . . . Utility 9 | 2 5 1 1 . Device 4 | 1 2 1 . . Storage 4 | 1 2 . 1 . Processor . | . . . . . Hackware . | . . . . . Protection 1 | . 1 . . . Artifact . | . . . . . Weapon 13 | 3 10 . . . Energy Gun 3 | 3 . . . . Energy Cannon . | . . . . . Ballistic Gun 8 | . 8 . . . Ballistic Cannon . | . . . . . Launcher 1 | . 1 . . . Special Weapon 1 | . 1 . . . Impact Weapon . | . . . . . Slashing Weapon . | . . . . . Piercing Weapon . | . . . . . Special Melee Weapon . | . . . . . Unidentified Prototypes 2 | . 1 1 . . Parts Lost 5 | . . . . 5 Power 1 | . . . . 1 Propulsion . | . . . . . Utility 2 | . . . . 2 Weapon 2 | . . . . 2 Highest Loss Streak 4 | . . . . 4 To Critical Strikes . | . . . . . Average Backups 12 | 5 12 15 15 14 Power . | . . 1 1 1 Propulsion 2 | 2 2 3 3 3 Utility 5 | . 4 7 7 6 Weapon 3 | 1 4 4 4 3 Tool/Special . | . . . . . Unused Backups 17 | . 8 1 1 7 Power . | . . . . . Propulsion 4 | . 1 . . 3 Utility 9 | . 3 1 1 4 Weapon 3 | . 3 . . . Tool/Special 1 | . 1 . . . Average Slot Usage (%) 99 | . 99 100 99 95 Engine 14 | . 14 14 14 14 Treads 21 | . 23 28 12 . Leg 6 | . 4 . 15 28 Device 11 | . 10 14 14 3 Storage 14 | . 14 14 14 14 Protection 2 | . 3 . . 6 Ballistic Gun 25 | . 26 18 28 28 Special Weapon 1 | . 1 9 . . Peak Build Rating 41 | 7 16 25 41 41 Average Rating 16 | 4 10 25 33 29 On Entrance 17 | . 7 16 25 41 Avg Prop Armor Cover (%) 14 | 14 . . . . Naked Turns . | . . . . . Heaviest Build 54 | 11 34 32 52 54 Greatest Support 60 | 20 46 46 60 60 Greatest Overweight (x) 4 | 1 4 . 1 . Average Overweight (x) . | . . . . . Largest Inventory Capacity 20 | 8 15 15 20 20 Average Capacity 13 | 6 13 15 17 20 Most Carried 15 | 8 15 15 15 15 Average Carried 12 | 5 12 14 14 13 Final Capacity 20 | 8 15 15 20 20 Final Carried 15 | 8 15 15 15 11 Class Distribution -------------------- 100% | Mutant Dominant Class ---------------- Mutant | -10/Materials Mutant | -10/Mines Mutant | -10/Exiles Mutant | -9/Mines Resources | -11 -10 -10 -10 -9 ----------- Run | Yrd Mat Min Exi Min Matter Collected 1192 | 261 822 26 40 43 Remotely . | . . . . . Salvage Created 1172 | 138 896 4 . 134 Parts 79 | 9 62 3 . 5 Haulers Intercepted 2 | . 2 . . . Recyclers Shooed 1 | . 1 . . . Parts Field Recycled . | . . . . . Retrieved Matter . | . . . . . Parts Self-Destructed . | . . . . . Prevented . | . . . . . Parts Restored . | . . . . . Kills | -11 -10 -10 -10 -9 ------- Run | Yrd Mat Min Exi Min Combat Hostiles Destroyed 22 | . 19 . . 3 Guns 22 | . 19 . . 3 Classes Destroyed 9 | 2 6 1 . . Worker 1 | . . 1 . . Tunneler 5 | 2 2 1 . . Hauler 2 | . 2 . . . Recycler 2 | 1 1 . . . Mechanic 1 | . 1 . . . Operator 2 | . 2 . . . Watcher 3 | . 3 . . . Swarmer 9 | . 9 . . . Grunt 13 | . 10 . . 3 Best Kill Streak 11 | 1 11 1 . 1 Combat Bots Only 11 | . 11 . . 1 Max Kills in Single Turn 1 | 1 1 1 . 1 Gunslinging . | . . . . . Exploded . | . . . . . Melee . | . . . . . Uniques/NPCs Destroyed . | . . . . . Combat | -11 -10 -10 -10 -9 -------- Run | Yrd Mat Min Exi Min Hostile Shots Fired 165 | . 90 . . 75 Missed 35 | . 20 . . 15 Hits 130 | . 70 . . 60 Projectile 130 | . 70 . . 60 Critical Strikes 3 | . 2 . . 1 Damage Taken 1443 | . 678 . . 765 Core 258 | . 140 . . 118 Absorbed by Shields . | . . . . . Core Remaining (%) 100 | 100 . . . . Volleys Fired 157 | 18 115 1 . 23 Largest 2 | 2 2 1 . 2 Hottest 100 | 80 100 100 . 40 Shots Fired 281 | 22 212 1 . 46 Gun 265 | 22 197 . . 46 Cannon . | . . . . . Launcher 1 | . 1 . . . Special 15 | . 14 1 . . Kinetic 240 | . 194 . . 46 Thermal 32 | 14 17 1 . . Explosive 1 | . 1 . . . Electromagnetic 8 | 8 . . . . Robot Hit Streak 15 | 3 14 8 . 15 Robot Miss Streak 7 | 3 7 . . 3 Penetration Max . | . . . . . Secondary Targets 2 | . 1 . . 1 Max Gunslinging Chain 1 | . 1 . . 1 Shots Hit Robots 173 | 12 129 1 . 31 Core Hits 78 | 4 60 1 . 13 Critical Kills 1 | . 1 . . . Critical Parts Destroyed 2 | . 2 . . . Critical Strikes 3 | . 3 . . . Destroy 3 | . 3 . . . Melee Attacks . | . . . . . Impact . | . . . . . Slashing . | . . . . . Piercing . | . . . . . Sneak Attacks . | . . . . . Combat Hostiles . | . . . . . Follow-up Attacks . | . . . . . Damage Inflicted 1640 | 140 1178 29 . 293 Guns 1590 | 140 1157 . . 293 Cannons . | . . . . . Explosions 21 | . 21 . . . Melee . | . . . . . Ramming 5 | . . 5 . . Kinetic 1429 | . 1136 . . 293 Thermal 133 | 88 21 24 . . Explosive 21 | . 21 . . . Electromagnetic 52 | 52 . . . . Impact . | . . . . . Slashing . | . . . . . Piercing . | . . . . . Highest Corruption . | . . . . . Average Corruption . | . . . . . Corruption Purged . | . . . . . Corruption Blocked . | . . . . . Overload Shots . | . . . . . Overflow Damage . | . . . . . Projectiles . | . . . . . Explosions . | . . . . . Melee . | . . . . . Knockbacks . | . . . . . Impact . | . . . . . Kinetic . | . . . . . Secondary . | . . . . . Self-Inflicted Damage . | . . . . . Shots . | . . . . . Rammed . | . . . . . Targets Rammed 1 | . . 1 . . Kicked . | . . . . . Crushed 1 | . . 1 . . Highest Temperature 208 | 54 208 24 . 152 Average Temperature 48 | 25 44 13 . 62 Received Heat Transfer 675 | . 228 . . 447 Siege Activations . | . . . . . Martial Activations . | . . . . . Shielding Activations . | . . . . . Robots Disrupted . | . . . . . Combat Hostiles . | . . . . . Robots Corrupted . | . . . . . Combat Hostiles . | . . . . . Parts Fried . | . . . . . Impact Corruptions . | . . . . . Robots Melted . | . . . . . Combat Hostiles . | . . . . . Parts Melted . | . . . . . Heat Transferred 300 | 200 50 50 . . Parts Sabotaged . | . . . . . Parts Stolen . | . . . . . Parts Stripped . | . . . . . Power Chain Reactions . | . . . . . Alert | -11 -10 -10 -10 -9 ------- Run | Yrd Mat Min Exi Min Maximum Alert Level 1 | . 1 . . . Low Security (%) 45 | 100 32 100 . 100 Level 1 54 | . 67 . . . Level 2 . | . . . . . Level 3 . | . . . . . Level 4 . | . . . . . Level 5 . | . . . . . High Security . | . . . . . Max Security . | . . . . . Peak Influence 399 | 5 399 72 . 30 Initial 72 | . 3 72 . . Average 169 | 1 207 28 . 9 Influence Increases 788 | 15 679 14 . 80 Destroy 0b10 Robot/C 440 | . 380 . . 60 Destroy 0b10 Robot/NC 80 | 15 55 10 . . Destroy Leader 110 | . 90 . . 20 Successful Hack 27 | . 23 4 . . Select Force Hacks 30 | . 30 . . . Destroy Structure 11 | . 11 . . . Lose Combat Pursuer 90 | . 90 . . . Influence Decreases 768 | 10 497 201 . 60 Entered New Map 117 | . 2 115 . . Time Decay 611 | 10 495 86 . 20 Lost Part 30 | . . . . 30 Lost Ally 10 | . . . . 10 Squads Dispatched 4 | . 4 . . . Investigation 1 | . 1 . . . Extermination . | . . . . . Reinforcement 3 | . 3 . . . Assault . | . . . . . Garrison . | . . . . . Intercept . | . . . . . Searches Triggered . | . . . . . Construction Impeded . | . . . . . Haulers Reinforced . | . . . . . Active Scanning Responses . | . . . . . Cargo Convoy Interrupts . | . . . . . Stealth | -11 -10 -10 -10 -9 --------- Run | Yrd Mat Min Exi Min Distress Signals 3 | . 3 . . . Communications Jammed . | . . . . . Distress Signals . | . . . . . Times Spotted 47 | . 42 . . 5 Peak Tracking Total 5 | . 5 . . 4 Tactical Retreats 3 | . 3 . . . Traps | -11 -10 -10 -10 -9 ------- Run | Yrd Mat Min Exi Min Traps Triggered 1 | . 1 . . . Indirectly . | . . . . . Trap Hack Attempts . | . . . . . Triggered . | . . . . . Disarmed . | . . . . . Reprogrammed . | . . . . . Reused . | . . . . . Traps Extracted . | . . . . . Installed . | . . . . . Triggered . | . . . . . Machines | -11 -10 -10 -10 -9 ---------- Run | Yrd Mat Min Exi Min Machines Disabled . | . . . . . Max in Single Turn . | . . . . . Machines Repaired . | . . . . . Machines Dismantled . | . . . . . Machines Sabotaged . | . . . . . Overloaded Fab Kills . | . . . . . Hacking | -11 -10 -10 -10 -9 --------- Run | Yrd Mat Min Exi Min Machines Accessed 10 | . 7 1 2 . Terminals 6 | . 5 1 . . Fabricators . | . . . . . Repair Stations 1 | . 1 . . . Recycling Units 1 | . 1 . . . Scanalyzers . | . . . . . Garrison Access . | . . . . . Total Hacks 32 | . 23 3 6 . Successful 20 | . 12 2 6 . Failed 11 | . 10 1 . . Catastrophic 1 | . 1 . . . Database Lockouts 1 | . 1 . . . Manual 23 | . 22 . 1 . Terminals 22 | . 19 3 . . Fabricators . | . . . . . Repair Stations 1 | . 1 . . . Recycling Units 3 | . 3 . . . Scanalyzers . | . . . . . Garrison Access . | . . . . . Terminal Hacks 10 | . 2 2 6 . Record 5 | . . . 5 . Robot Analysis 1 | . 1 . . . Prototype ID Bank 1 | . 1 . . . Dispatch Records 1 | . . 1 . . Zone Layout 1 | . . 1 . . Proto ID Catalog 1 | . . . 1 . Fabricator Hacks . | . . . . . Repair Station Hacks . | . . . . . Recycling Unit Hacks 2 | . 2 . . . Report Inventory 1 | . 1 . . . Retrieve Components 1 | . 1 . . . Scanalyzer . | . . . . . Garrison Access Hacks . | . . . . . Unauthorized Hacks 8 | . 8 . . . Terminals 7 | . 7 . . . Assimilate 1 | . 1 . . . Botnet 3 | . 3 . . . Skim 3 | . 3 . . . Fabricators . | . . . . . Repair Stations . | . . . . . Recycling Units 1 | . 1 . . . Tunnel 1 | . 1 . . . Scanalyzers . | . . . . . Garrison Access . | . . . . . Data Cores Recovered . | . . . . . Used . | . . . . . Hacking Detections 7 | . 6 1 . . Full Trace Events . | . . . . . Feedback Events . | . . . . . Feedback Blocked . | . . . . . Robot Schematics Acquired . | . . . . . Robots Built . | . . . . . Authchips . | . . . . . Time . | . . . . . Total Robot Build Rating . | . . . . . Part Schematics Acquired . | . . . . . Parts Built . | . . . . . Authchips . | . . . . . Time . | . . . . . Total Part Build Rating . | . . . . . Part Studies Acquired . | . . . . . Parts Repaired . | . . . . . Time . | . . . . . Parts Recycled . | . . . . . Recycled Matter . | . . . . . Retrieved Matter . | . . . . . Retrieved Components 10 | . 10 . . . Parts Scanalyzed . | . . . . . Part Schematics Acquired . | . . . . . Parts Damaged . | . . . . . Bothacking | -11 -10 -10 -10 -9 ------------ Run | Yrd Mat Min Exi Min Used RIF Installer . | . . . . . Robots Hacked . | . . . . . Non-combat . | . . . . . Combat . | . . . . . Robot Hacks Applied . | . . . . . Relay Couplers Released . | . . . . . Fabnet Peak Effective % . | . . . . . Robots Rewired . | . . . . . Allies Hacked . | . . . . . Hacks Repelled . | . . . . . Allies | -11 -10 -10 -10 -9 -------- Run | Yrd Mat Min Exi Min Total Allies 1 | . 1 . . . Largest Group 1 | . 1 1 1 1 Highest-Rated Group 10 | . 10 10 10 10 Highest-Rated Ally 10 | . 10 10 10 10 Total Orders . | . . . . . Ally Attacks . | . . . . . Total Damage . | . . . . . Kills . | . . . . . Allies Corrupted . | . . . . . Allies Melted . | . . . . . X0-1V1 Amusement Gains 21 | . 11 . . 10 Average Entertainment 7 | . 10 5 . 10 Good Acts 1 | . . . . 1 Bad Acts 2 | . . 2 . . Intel | -11 -10 -10 -10 -9 ------- Run | Yrd Mat Min Exi Min Active Infowar (turns) 927 | 49 878 . . . Seismic 927 | 49 878 . . . Robot Analysis Total 1 | . 1 . . . Derelict Logs Recovered . | . . . . . Drone Launches . | . . . . . Drone Recoveries . | . . . . . Exploration | -11 -10 -10 -10 -9 ------------- Run | Yrd Mat Min Exi Min Turns Passed 2825 | 136 1879 247 484 79 Spaces Moved 1597 | 67 949 149 426 6 Core 21 | 16 5 . . . Treads 1072 | . 791 149 132 . Legs 503 | 50 153 . 294 6 Wheels 1 | 1 . . . . Hover . | . . . . . Flight . | . . . . . Fastest Speed 50 | 50 120 160 90 90 Average Speed 141 | 106 154 160 111 90 Slowest Speed 250 | 120 250 160 170 90 Overloaded Moves . | . . . . . Propulsion Burnouts . | . . . . . Robots Hopped . | . . . . . Potential Cave-ins . | . . . . . Cave-ins Triggered . | . . . . . Exploration Rate (%) 46 | 4 97 35 90 4 Regions Visited 4 Branch Regions 3 Pre-discovered Areas 2 | . 1 . 1 . Known Exits Taken . | . . . . . Unknown Exits Taken 4 | 1 1 1 1 . Scrap Searched 1 | . . 1 . . Spaces Dug 1 | . 1 . . . Terrain Destroyed 11 | . 11 . . . Melee . | . . . . . Projectile 1 | . 1 . . . AOE 10 | . 10 . . . Terrain Rammed . | . . . . . Walls Destroyed . | . . . . . Machines Disabled . | . . . . . Actions | -11 -10 -10 -10 -9 --------- Run | Yrd Mat Min Exi Min Total 1904 | 108 1169 154 434 39 Wait 32 | . 25 . 1 6 Move 1593 | 66 948 148 425 6 Hop . | . . . . . Pick Up 37 | 10 25 1 1 . Fast Attach 11 | 7 2 . 2 . Attach 13 | 3 6 . . 4 Detach 3 | 1 2 . . . Swap 23 | . 20 2 1 . Drop 34 | 3 26 1 4 . Fire 157 | 18 115 1 . 23 Melee . | . . . . . Ram . | . . . . . Kick . | . . . . . Crush 1 | . . 1 . . Escape Stasis . | . . . . . Rewire . | . . . . . Trap . | . . . . . Miscellaneous . | . . . . . Route ------- -11/Scrapyard -10/Materials (discovered 5 exits: [*Mat x3] / *Min x2) -10/Mines -10/Exiles -9/Mines History --------- Turn | Location | Event 2 | -11/Scrapyard | Met Revision 17 10 | -11/Scrapyard | Discovered new exit (range 15) 137 | -11/Scrapyard | Entered Materials 181 | -10/Materials | Discovered new exit (range 9) 302 | -10/Materials | Build established: Mutant 725 | -10/Materials | Destroyed 11 combat bots 838 | -10/Materials | Discovered new exit (range 12) 981 | -10/Materials | Discovered new exit (range 16) 1307 | -10/Materials | Discovered new exit (range 5) 1323 | -10/Materials | Central database locked down 1549 | -10/Materials | Core integrity fell below 50% 1672 | -10/Materials | Discovered new exit (range 6) 1971 | -10/Materials | Prayed at D.C.S.S. Altar Unit 2016 | -10/Materials | Entered Mines 2016 | -10/Mines | Accompanied by 1 ally 2019 | -10/Mines | Met a Derelict bent on vengeance 2104 | -10/Mines | X0-1V1 announced a LAN party 2252 | -10/Mines | Deemed a non-threat by the Exiles lab entrance 2254 | -10/Mines | Discovered new exit (range 5) 2263 | -10/Mines | Entered Exiles 2263 | -10/Exiles | Accompanied by 1 ally 2303 | -10/Exiles | Met 8R-AWN 2337 | -10/Exiles | Met EX-HEX 2391 | -10/Exiles | Met EX-BIN 2419 | -10/Exiles | Aligned with FarCom system 2420 | -10/Exiles | Given EX-Vault access code 2460 | -10/Exiles | Opened EX-Vault 2476 | -10/Exiles | Found Potential Leg 2480 | -10/Exiles | Found Potential Leg 2498 | -10/Exiles | Warned to stay clear of 0b10 Research branches 2572 | -10/Exiles | Met EX-DEC 2589 | -10/Exiles | Visited The Gauntlet 2694 | -10/Exiles | Learned location of Zion (-6) 2737 | -10/Exiles | Discovered new exit (range 14) 2747 | -10/Exiles | Left Exiles lab with Potential Leg 2747 | -10/Exiles | Entered Mines 2747 | -9/Mines | Accompanied by 1 ally 2788 | -9/Mines | Core integrity fell below 20% 2826 | -9/Mines | Destroyed by G-34 Mercenary with Small Laser Last Messages --------------- LOCATION=UNKNOWN GOAL=ESCAPE 02747_ Receiving FarCom transmissions... 02753_ G-34 Mercenary destroyed. 02757_ X0-1V1's Piety Tracker destroyed. 02757_ X0-1V1 is mildly amused. 02759_ Critical hit (Burn: +37). 02764_ X0-1V1 makes it rain matter. 02780_ G-47 Trooper destroyed. 02789_ Acquired 43 matter. X0-1V1's Piety Tracker suddenly appears amidst shimmering waves of color. 02804_ Lgt. Assault Rifle destroyed. 02806_ Assault Rifle destroyed. 02808_ Lgt. Armor Plating destroyed. 02817_ G-47 Trooper destroyed. 02817_ Switching to secondary target: G-34 Mercenary. 02822_ Hvy. Ion Engine destroyed. 02826_ X0-1V1 howls with laughter! Map ----- +----------------------------------------------------+ | | | | | | | | | | | | | ?????????????????????????????????????????????? | | ?????????????????????????????????????????????? | | ?????????????????????????????????????????????? | | ?????????????????????????????????????????????? | | ?????????????????????????????????????????????? | | ?????????????????????????????????????????????? | | ?????????????????????????????????????????????? | | ?????????????????????????????????????????????? | | ?????????????????????????????????????????????? | | ????????????????????????????""???????????????? | | ????????????????????????????""???????????????? | | ????????????????????????????""???????????????? | | ???????????????????????????? ???????????????? | | ???????????????????????????? #???????????????? | | ???????????????????????????? #???????????????? | | ????????????????????????????%#???????????????? | | ????????????????????????####%##??????????????? | | ????????????????????????# = % #??????????????? | | ???????????????????#????#%%% %#??????????????? | | ?????????????????### ####@%!! #??????????????? | | ?????????????????# = ! #??????????????? | | ?????????????????# ####g# g #??????????????? | | ??????????????????????# ### ###??????????????? | | ??????????????????????#%#?# #????????????????? | | ??????????????????????#%#?# #????????????????? | | ??????????????????????#%#?# #????????????????? | | ??????????????????????# ? #????????????????? | | ??????????????????????###?# #????????????????? | | ??????????????????????????# #????????????????? | | ??????????????????????????? ?????????????????? | | ??????????????????????????? ?????????????????? | | ???????????????????????????#?????????????????? | | ?????????????????????????????????????????????? | | ?????????????????????????????????????????????? | | ?????????????????????????????????????????????? | | ?????????????????????????????????????????????? | | ?????????????????????????????????????????????? | | ?????????????????????????????????????????????? | | ?????????????????????????????????????????????? | | ?????????????????????????????????????????????? | | ?????????????????????????????????????????????? | | ?????????????????????????????????????????????? | | ?????????????????????????????????????????????? | | ?????????????????????????????????????????????? | +----------------------------------------------------+ Best States ------------- Heat Dissipation 39 Energy Generation 14 Energy Capacity 280 Matter Stores 300 Matter Capacity 300 Sight Range 16 Terrain Scan Density 10 Armor Coverage 150 Evasion (%) 57 Recoil Reduction 2 Item Schematics ----------------- None Robot Schematics ------------------ None Fabricated ------------ Nothing Repaired ---------- Nothing Studied --------- None Alien Tech Used ----------------- None Achievements -------------- Sprinter Challenges ------------ None Game ------ Seed FlakOmegaBeacon Manual? 0 Play Time 00:26:51 Cumulative 402.6 hours Start 2026.09.04 @ 07:20:55 End 2026.09.04 @ 07:46:34 Sessions 1 Manual Loads 0 Difficulty Rogue Special Mode None Game No. 295 Rogue 285 Adventurer 0 Explorer 10 Win Type - Total 5 Types 5/0/0/0/0/0/0/0/0/0 Lore% 81 Gallery% 65 Achievement% 44 Wizard Run 0 Options --------- Layout 2 ASCII 0 Keyboard 0 Movement Arrows Keybinds 1 Fullscreen 1 Font 24/Terminus Map View 50x44 Zoom Use 0% Tactical HUD 1 Map Filters NONE Filters NONE Steam 1 RUN: e60ffcbe-e73f-4b22-9e6d-317363cc4c2a